bitfinex/quotes_SOLUSD_20241010
["timestamp","ask_amount","ask_price","bid_price","bid_amount"]
[1728574424263,0.851224,137.62,137.57,7.2689]
[1728574424571,7.2669,137.61,137.58,24.027864]
[1728574424958,7.2669,137.61,137.58,25.48129367]
[1728574425370,7.2669,137.61,137.58,24.027864]
[1728574426958,7.2669,137.61,137.59,1.4534293]
[1728574427355,7.2669,137.61,137.58,24.027864]
[1728574427555,7.2669,137.61,137.58,25.48129036]
[1728574428582,8.117624,137.62,137.58,32.74929036]
[1728574428881,8.117624,137.62,137.58,31.295864]
[1728574429284,7.2669,137.61,137.58,31.295864]
[1728574429662,7.2669,137.61,137.58,0.25098]
[1728574431682,7.2669,137.61,137.59,23.776884]
[1728574431857,7.2669,137.61,137.6,0.12549]
[1728574432055,7.2669,137.61,137.58,0.25098]
[1728574433662,7.2669,137.61,137.58,1.70439692]
[1728574434869,0.851224,137.62,137.58,1.70439692]
[1728574435077,8.117724,137.62,137.58,8.97279692]
[1728574435779,8.117724,137.62,137.6,0.25098]
[1728574435981,0.851224,137.62,137.6,0.12549]
[1728574436182,7.2669,137.61,137.6,0.12549]
[1728574436556,7.2669,137.61,137.58,18.1711]
[1728574436557,7.2674,137.6,137.59,0.12549]
[1728574436770,7.2683,137.59,137.55,31.7795]
[1728574436971,1.351224,137.62,137.55,31.7795]
[1728574438258,7.2686,137.58,137.55,24.5099]
[1728574438466,7.2686,137.58,137.56,0.12549]
[1728574439188,7.2695,137.56,137.52,32.0308]
[1728574439557,0.5,137.6,137.52,6.5809]
[1728574439760,7.2701,137.55,137.52,6.5809]
[1728574440372,0.5,137.58,137.52,6.5809]
[1728574440686,7.2697,137.56,137.52,13.8521]
[1728574441189,7.2693,137.57,137.53,31.298964]
[1728574441373,7.2699,137.56,137.53,25.48182771]
[1728574441568,7.2699,137.56,137.53,24.027864]
[1728574441992,7.2699,137.56,137.52,32.0313]
[1728574441993,0.5,137.55,137.5,15.1737]
[1728574442291,0.5,137.55,137.46,33.4098]
[1728574442965,7.2728,137.5,137.46,40.6845]
[1728574443386,7.2728,137.5,137.46,33.4098]
[1728574443582,0.5,137.52,137.47,24.027864]
[1728574443780,0.5,137.52,137.42,52.7761]
[1728574443781,18.181,137.51,137.42,16.3914]
[1728574443975,0.5,137.5,137.42,23.668]
[1728574444172,7.2744,137.47,137.42,16.3914]
[1728574444572,7.2744,137.47,137.42,23.6679]
[1728574444968,7.2739,137.48,137.45,24.027864]
[1728574445370,0.5,137.47,137.42,34.5829]
[1728574445684,7.2744,137.47,137.43,7.2763]
[1728574446791,7.2744,137.47,137.42,41.8597]
[1728574447004,7.275,137.46,137.43,23.902374]
[1728574448402,7.275,137.46,137.44,0.12549]
[1728574448564,7.2743,137.47,137.45,0.12549]
[1728574449070,7.2743,137.47,137.44,0.25098]
[1728574449677,7.2736,137.49,137.44,0.25098]
[1728574449876,7.2736,137.49,137.46,0.25098]
[1728574449877,7.2734,137.49,137.46,0.25098]
[1728574450080,7.7729,137.5,137.46,1.70576525]
[1728574450289,7.2729,137.5,137.46,1.70576525]
[1728574450496,7.7723,137.51,137.47,7.2739]
[1728574450707,7.7723,137.51,137.48,0.12549]
[1728574451079,7.2728,137.5,137.46,25.71228]
[1728574451985,7.2728,137.5,137.48,0.12549]
[1728574452688,7.2728,137.5,137.47,0.12549]
[1728574452892,7.2732,137.49,137.47,0.12549]
[1728574454716,7.2728,137.5,137.47,1.58016874]
[1728574456003,0.5,137.53,137.49,7.39869]
[1728574456179,7.2711,137.54,137.5,1.45439415]
[1728574456385,7.2711,137.53,137.51,0.12549]
[1728574456797,7.2711,137.53,137.5,0.25098]
[1728574456994,0.5,137.52,137.46,0.25098]
[1728574457291,16.479,137.56,137.45,40.804]
[1728574457292,7.2734,137.49,137.45,40.804]
[1728574457802,7.2743,137.48,137.45,15.3415]
[1728574458303,7.2743,137.48,137.45,22.6168]
[1728574458595,0.5,137.5,137.45,15.3415]
[1728574458804,7.2737,137.48,137.44,31.724]
[1728574459187,7.2743,137.47,137.44,24.4485]
[1728574459388,7.2743,137.47,137.44,6.2589]
[1728574459599,7.2749,137.46,137.43,1.45510466]
[1728574459978,7.2743,137.47,137.43,8.73120466]
[1728574460903,7.2743,137.47,137.45,0.12549]
[1728574464720,7.2739,137.48,137.45,8.98123087]
[1728574465081,7.2735,137.49,137.45,8.98123087]
[1728574465896,7.2735,137.49,137.45,7.52628]
[1728574466207,7.2738,137.48,137.45,7.52628]
[1728574466397,7.2738,137.48,137.45,8.98111924]
[1728574466792,7.2738,137.48,137.45,7.52628]
[1728574467514,7.2738,137.48,137.45,8.98111949]
[1728574467695,7.2738,137.48,137.45,7.52628]
[1728574467899,7.2738,137.48,137.45,8.98111672]
[1728574468618,7.2738,137.48,137.45,7.52628]
[1728574469911,7.2738,137.48,137.45,0.25098]
[1728574470111,7.2747,137.47,137.43,18.1909]
[1728574470295,7.2755,137.45,137.41,23.0424]
[1728574470495,0.5,137.48,137.42,1.45509296]
[1728574470695,7.2749,137.46,137.42,26.92369296]
[1728574471389,7.2749,137.46,137.43,0.25098]
[1728574471920,7.2744,137.47,137.43,31.304164]
[1728574472095,7.2744,137.47,137.44,1.45500802]
[1728574472617,7.2744,137.47,137.45,0.12549]
[1728574472795,7.2744,137.47,137.43,31.304164]
[1728574473409,7.2754,137.45,137.42,25.4691]
[1728574473616,7.2754,137.45,137.41,23.0426]
[1728574474697,7.2754,137.45,137.43,0.12549]
[1728574475099,7.2759,137.44,137.39,18.1951]
[1728574475302,7.277,137.42,137.39,18.1951]
[1728574475505,7.277,137.42,137.38,7.2789]
[1728574476616,7.277,137.42,137.39,24.027864]
[1728574477513,7.277,137.42,137.4,1.45543971]
[1728574478720,7.277,137.42,137.4,1.4554365]
[1728574479615,7.277,137.42,137.39,0.25098]
[1728574480197,7.277,137.42,137.39,1.7064198]
[1728574480905,7.277,137.42,137.39,0.25098]
[1728574481520,7.277,137.42,137.39,7.52938]
[1728574481822,7.277,137.42,137.39,8.984817]
[1728574482401,7.277,137.42,137.39,7.52938]
[1728574483834,7.277,137.42,137.39,1.70641648]
[1728574484435,7.277,137.42,137.39,0.25098]
[1728574484913,7.277,137.42,137.39,1.70641854]
[1728574485113,7.277,137.42,137.39,8.98491854]
[1728574485313,7.2765,137.43,137.39,8.98491854]
[1728574485527,7.2765,137.43,137.39,27.18111854]
[1728574486611,7.2761,137.44,137.41,7.2774]
[1728574487217,18.6872,137.46,137.42,1.58076218]
[1728574487218,0.5,137.46,137.42,1.58076218]
[1728574487533,7.2755,137.45,137.42,1.58076218]
[1728574487714,7.2755,137.45,137.42,24.027864]
[1728574487917,7.2755,137.45,137.42,32.75990543]
[1728574488121,7.2755,137.45,137.42,24.027864]
[1728574488317,0.5,137.44,137.41,0.12549]
[1728574488541,0.5,137.46,137.41,0.25098]
[1728574488846,7.2764,137.43,137.41,0.25098]
[1728574489911,0.5,137.46,137.41,1.70626637]
[1728574490136,7.276,137.44,137.41,0.25098]
[1728574490332,7.276,137.44,137.41,24.027864]
[1728574490518,7.276,137.44,137.42,0.12549]
[1728574491031,7.276,137.44,137.41,24.027864]
[1728574492050,7.276,137.44,137.37,22.9984]
[1728574492051,7.7745,137.47,137.43,31.304164]
[1728574492213,7.2745,137.47,137.44,1.45498377]
[1728574492618,7.2745,137.47,137.45,0.12549]
[1728574493326,16.3802,137.51,137.46,1.45493068]
[1728574493540,7.2724,137.51,137.47,24.027864]
[1728574493745,7.2724,137.51,137.48,1.45459396]
[1728574495244,0.5,137.54,137.48,8.72819396]
[1728574495245,7.272,137.52,137.48,8.72819396]
[1728574495619,7.2722,137.51,137.48,1.45459396]
[1728574495817,0.5,137.54,137.48,1.45459396]
[1728574495818,0.5,137.54,137.49,7.52418]
[1728574496118,7.2707,137.54,137.51,0.25098]
[1728574496320,18.6722,137.58,137.51,0.25098]
[1728574496534,7.2711,137.53,137.51,0.25098]
[1728574496720,7.2711,137.53,137.5,1.45437658]
[1728574496721,7.2711,137.53,137.49,13.4233]
[1728574496926,18.1768,137.54,137.5,0.25098]
[1728574497129,0.5,137.53,137.49,24.027864]
[1728574497740,7.2719,137.52,137.49,24.027864]
[1728574498318,18.1734,137.57,137.51,0.25098]
[1728574498518,7.2707,137.54,137.51,0.25098]
[1728574499432,0.5,137.58,137.53,18.42858]
[1728574499751,7.269,137.57,137.55,0.12549]
[1728574500119,7.2698,137.56,137.53,0.12549]
[1728574500322,0.5,137.55,137.51,0.12549]
[1728574500547,7.2701,137.55,137.51,32.75415834]
[1728574500733,0.5,137.58,137.51,25.48205834]
[1728574500936,7.271,137.54,137.51,24.027864]
[1728574502136,7.2702,137.55,137.51,31.299964]
[1728574502335,7.2696,137.56,137.53,0.12549]
[1728574502536,7.2696,137.56,137.53,24.027864]
[1728574502721,7.27,137.55,137.53,0.12549]
[1728574502933,7.27,137.55,137.52,0.25098]
[1728574503651,7.27,137.55,137.51,24.027864]
[1728574504129,7.2706,137.54,137.51,24.027864]
[1728574505248,7.2706,137.54,137.51,0.25098]
[1728574506152,7.2722,137.51,137.47,25.4589]
[1728574507037,7.2718,137.52,137.48,22.9679]
[1728574507239,0.5,137.54,137.5,0.25098]
[1728574507435,7.2707,137.54,137.51,1.4542555]
[1728574507642,7.2707,137.54,137.52,0.12549]
[1728574510235,0.5,137.53,137.5,0.12549]
[1728574510545,7.272,137.52,137.5,0.12549]
[1728574511351,0.5,137.55,137.49,0.25098]
[1728574511528,7.2725,137.51,137.49,0.25098]
[1728574511857,7.2717,137.52,137.49,1.70543145]
[1728574512154,7.2707,137.54,137.51,0.25098]
[1728574512352,7.2707,137.54,137.51,1.70519937]
[1728574512530,18.1726,137.57,137.51,0.25098]
[1728574512732,7.2712,137.53,137.51,0.25098]
[1728574513749,7.2707,137.54,137.51,1.70522036]
[1728574514443,7.2707,137.54,137.51,0.25098]
[1728574515354,7.272,137.52,137.49,0.12549]
[1728574515843,7.2722,137.51,137.49,0.12549]
[1728574516236,7.2718,137.52,137.49,1.45443269]
[1728574516432,0.5,137.53,137.48,15.6942]
[1728574516433,7.2722,137.51,137.48,15.6942]
[1728574517455,7.2732,137.49,137.46,6.5319]
[1728574517754,18.6782,137.53,137.46,6.5319]
[1728574517954,7.2738,137.48,137.46,6.5319]
[1728574518862,18.6782,137.53,137.42,13.6438]
[1728574518863,18.1807,137.51,137.42,13.6438]
[1728574519163,7.2749,137.46,137.42,13.6438]
[1728574519357,7.2746,137.47,137.43,7.2763]
[1728574520165,7.2746,137.47,137.44,24.027864]
[1728574520550,7.2746,137.47,137.44,25.48279168]
[1728574520750,7.2746,137.47,137.44,24.027864]
[1728574523971,0.5,137.5,137.43,18.1903]
[1728574524177,0.5,137.52,137.43,18.1903]
[1728574524379,7.2739,137.48,137.44,8.73063436]
[1728574524872,7.2739,137.48,137.44,7.2758]
[1728574525464,7.2739,137.48,137.45,0.25098]
[1728574526781,7.2733,137.49,137.45,8.98102381]
[1728574526983,7.2718,137.52,137.47,0.25098]
[1728574527279,7.2713,137.53,137.49,7.39829]
[1728574527466,0.5,137.55,137.5,1.57981534]
[1728574527467,7.2707,137.54,137.5,1.57981534]
[1728574527780,7.7701,137.55,137.51,7.39759]
[1728574528081,7.7706,137.54,137.51,0.12549]
[1728574528392,7.2706,137.54,137.51,0.12549]
[1728574529459,7.2716,137.52,137.49,0.12549]
[1728574529677,7.2716,137.52,137.49,0.25098]
[1728574529872,7.2716,137.52,137.49,1.70536658]
[1728574530072,7.2709,137.54,137.51,0.25098]
[1728574530277,7.2709,137.54,137.51,1.7052133]
[1728574530575,0.5,137.57,137.53,0.12549]
[1728574530766,0.5,137.57,137.53,1.57952395]
[1728574531463,7.2697,137.56,137.53,1.57952395]
[1728574533588,7.2701,137.55,137.53,0.12549]
[1728574533766,7.2701,137.55,137.53,1.57949847]
[1728574534177,0.5,137.58,137.54,0.12549]
[1728574534484,7.2695,137.57,137.54,0.12549]
[1728574535078,7.2695,137.56,137.54,0.12549]
[1728574535473,7.27,137.55,137.53,0.12549]
[1728574535784,7.2706,137.54,137.53,0.12549]
[1728574535984,7.2706,137.54,137.53,0.25098]
[1728574537685,7.2703,137.55,137.53,0.25098]
[1728574539483,7.271,137.54,137.51,0.25098]
[1728574539783,7.271,137.54,137.51,24.027864]
[1728574539988,7.2712,137.53,137.51,24.027864]
[1728574541264,7.2708,137.54,137.51,24.027864]
[1728574541465,7.2708,137.54,137.51,25.48206128]
[1728574542482,0.5,137.56,137.51,32.75416128]
[1728574542689,7.7699,137.56,137.53,0.25098]
[1728574542893,7.2699,137.56,137.53,0.25098]
[1728574544270,7.2699,137.56,137.53,24.027864]
[1728574544466,7.2699,137.56,137.53,1.70495213]
[1728574544670,0.5,137.59,137.53,0.25098]
[1728574544897,7.2706,137.54,137.52,0.25098]
[1728574545098,7.2706,137.54,137.52,1.70511294]
[1728574546195,18.6711,137.59,137.52,1.70511294]
[1728574546388,7.2681,137.59,137.56,0.12549]
[1728574546589,1.351224,137.62,137.58,0.12549]
[1728574546796,0.851224,137.62,137.59,0.12549]
[1728574547000,7.2672,137.61,137.59,0.12549]
[1728574549798,0.851224,137.62,137.59,0.12549]
[1728574549971,0.851224,137.62,137.6,0.12549]
[1728574550174,0.851224,137.62,137.6,23.902374]
[1728574550374,0.851224,137.62,137.61,1.57872326]
[1728574550575,0.851224,137.62,137.61,31.294764]
[1728574550880,0.851224,137.62,137.61,24.027864]
[1728574551181,0.851224,137.62,137.61,0.25098]
[1728574551388,0.851224,137.62,137.6,25.48103203]
[1728574552172,0.851224,137.62,137.61,31.294764]
[1728574553675,0.851224,137.62,137.61,24.027864]
[1728574555194,0.851224,137.62,137.6,6.0171]
[1728574555394,0.851224,137.62,137.57,6.604]
[1728574555613,7.2678,137.6,137.57,6.604]
[1728574555908,19.017624,137.62,137.55,16.3722]
[1728574556300,7.268,137.59,137.55,41.817]
[1728574557504,7.269,137.57,137.54,6.0875]
[1728574558193,7.2687,137.58,137.54,13.358]
[1728574558401,7.2681,137.59,137.55,8.7233384]
[1728574559102,7.2681,137.59,137.56,0.25098]
[1728574559295,7.2686,137.58,137.55,24.027864]
[1728574560206,7.2686,137.58,137.57,0.12549]
[1728574560390,0.851224,137.62,137.57,0.25098]
[1728574560705,0.851224,137.62,137.58,1.45347562]
[1728574560904,7.2672,137.61,137.58,1.45347562]
[1728574561106,0.851224,137.62,137.58,1.45347562]
[1728574561107,7.2675,137.6,137.58,1.45347562]
[1728574561482,7.2675,137.6,137.57,1.70452575]
[1728574561996,1.351224,137.62,137.56,0.12549]
[1728574562181,7.2689,137.58,137.56,0.25098]
[1728574563078,7.2686,137.58,137.56,1.45365384]
[1728574563309,7.2686,137.58,137.54,13.3576]
[1728574563703,7.2686,137.58,137.55,1.4536726]
[1728574563911,7.2681,137.59,137.55,8.7235726]
[1728574564406,7.2671,137.61,137.57,7.2689]
[1728574564615,7.2671,137.61,137.58,1.453479]
[1728574564993,7.2674,137.6,137.56,31.297164]
[1728574566307,1.351224,137.62,137.56,24.027864]
[1728574566495,7.2688,137.58,137.56,0.25098]
[1728574567509,0.5,137.61,137.56,0.25098]
[1728574567710,7.2699,137.56,137.52,41.5675]
[1728574567882,0.5,137.59,137.51,6.2857]
[1728574568088,7.2706,137.54,137.52,1.45414194]
[1728574568301,7.2702,137.55,137.51,13.5578]
[1728574568491,7.2702,137.55,137.51,31.7382]
[1728574569097,7.2699,137.56,137.52,7.2715]
[1728574569296,7.2699,137.56,137.53,1.4539532]
[1728574569538,7.2699,137.56,137.54,0.12549]
[1728574569818,7.2699,137.56,137.54,0.25098]
[1728574571008,7.269,137.57,137.55,1.45394731]
[1728574571395,0.5,137.6,137.56,1.45385172]
[1728574571624,7.268,137.59,137.57,0.12549]
[1728574572393,7.268,137.59,137.56,0.25098]
[1728574572716,7.269,137.58,137.56,0.12549]
[1728574572899,19.017324,137.62,137.4,260.7]
[1728574572900,7.2701,137.55,137.51,13.5576]
[1728574573225,7.2706,137.54,137.51,13.5576]
[1728574573797,0.5,137.57,137.51,6.2857]
[1728574574023,18.1743,137.56,137.49,34.5472]
[1728574574194,7.2714,137.53,137.49,41.8204]
[1728574575018,0.5,137.55,137.49,34.5472]
[1728574575319,7.2718,137.52,137.49,34.5472]
[1728574575898,7.2718,137.52,137.5,24.027864]
[1728574576098,0.5,137.55,137.5,24.027864]
[1728574576318,7.2709,137.54,137.5,31.300164]
[1728574576507,7.2714,137.53,137.5,24.027864]
[1728574578716,0.5,137.55,137.5,0.25098]
[1728574578915,0.5,137.55,137.47,7.5242145]
[1728574578916,7.2732,137.49,137.47,7.5242145]
[1728574579128,7.2732,137.49,137.45,6.4974]
[1728574579129,18.1796,137.52,137.45,6.4974]
[1728574579307,18.1796,137.52,137.44,7.2754]
[1728574579308,7.2751,137.46,137.43,15.6589]
[1728574579493,7.2751,137.46,137.42,7.2768]
[1728574579700,0.5,137.49,137.42,7.2768]
[1728574580017,7.2745,137.47,137.43,7.2763]
[1728574580519,7.2752,137.46,137.42,25.4687]
[1728574580721,7.2758,137.45,137.41,6.4974]
[1728574580895,7.2758,137.45,137.39,18.1954]
[1728574580896,7.7764,137.44,137.39,25.4738]
[1728574581097,7.2764,137.44,137.39,25.4738]
[1728574581426,7.2755,137.45,137.4,8.73278158]
[1728574581616,7.2749,137.46,137.42,7.2768]
[1728574581808,7.2749,137.46,137.41,25.4707]
[1728574582324,7.2749,137.46,137.42,0.12549]
[1728574583319,7.2749,137.46,137.42,24.027864]
[1728574583623,7.2753,137.45,137.42,24.027864]
[1728574583945,7.2765,137.43,137.39,7.2785]
[1728574584496,0.5,137.42,137.38,18.1971]
[1728574584815,7.2773,137.42,137.38,25.476]
[1728574585329,7.2773,137.42,137.39,1.45550134]
[1728574585496,7.2777,137.41,137.38,18.1971]
[1728574585692,7.2777,137.41,137.37,23.1391]
[1728574585916,7.2777,137.41,137.37,6.4924]
[1728574586124,7.2781,137.4,137.36,7.2799]
[1728574586335,15.2736,137.47,137.34,22.3664]
[1728574586336,0.5,137.39,137.34,6.5302]
[1728574586623,18.1929,137.42,137.34,6.5302]
[1728574586624,7.2796,137.37,137.34,6.5302]
[1728574586822,7.2796,137.37,137.32,18.2046]
[1728574586823,33.7627,137.4,137.32,25.4867]
[1728574586999,7.7787,137.39,137.34,7.2808]
[1728574587317,0.5,137.39,137.34,7.2808]
[1728574587626,7.2791,137.38,137.34,7.2808]
[1728574587822,7.7786,137.39,137.34,7.2808]
[1728574588520,7.7786,137.39,137.35,1.70691672]
[1728574589399,7.2782,137.4,137.35,1.70691672]
[1728574589723,7.2778,137.41,137.37,7.53048]
[1728574589899,0.5,137.42,137.39,0.12549]
[1728574590106,7.2771,137.42,137.39,0.12549]
[1728574590415,7.2765,137.43,137.39,0.25098]
[1728574590734,7.277,137.42,137.39,0.25098]
[1728574591308,7.277,137.42,137.39,1.70650607]
[1728574592023,0.5,137.45,137.4,7.2779]
[1728574592024,7.2759,137.44,137.4,7.2779]
[1728574592227,7.2759,137.44,137.41,0.12549]
[1728574593109,7.2759,137.44,137.4,0.12549]
[1728574593903,0.5,137.45,137.4,0.12549]
[1728574594101,7.2765,137.43,137.4,0.12549]
[1728574595907,0.5,137.45,137.41,0.12549]
[1728574596116,7.7751,137.46,137.42,7.40239]
[1728574596328,7.2751,137.46,137.42,7.40239]
[1728574597032,0.5,137.49,137.42,18.31759]
[1728574597331,7.2757,137.45,137.41,7.52828]
[1728574597718,7.2757,137.45,137.42,0.12549]
[1728574598224,7.2749,137.46,137.43,0.12549]
[1728574598810,0.5,137.45,137.38,16.2359]
[1728574599024,7.2775,137.41,137.37,7.2792]
[1728574599403,7.2775,137.41,137.37,8.73502616]
[1728574599404,7.2779,137.41,137.37,8.73502616]
[1728574600610,7.2779,137.41,137.38,24.027864]
[1728574601832,18.1899,137.44,137.37,24.027864]
[1728574602034,7.2787,137.39,137.37,24.027864]
[1728574602633,7.2787,137.39,137.35,7.2806]
[1728574602834,7.2787,137.39,137.33,18.2033]
[1728574602835,7.2796,137.37,137.33,32.009]
[1728574603008,7.2791,137.38,137.34,7.281]
[1728574604032,7.2791,137.38,137.35,24.027864]
[1728574604218,0.5,137.37,137.33,24.7277]
[1728574604407,7.2801,137.36,137.33,24.7277]
[1728574604607,0.5,137.39,137.33,24.7277]
[1728574604608,7.2806,137.35,137.33,6.5244]
[1728574604819,18.198,137.38,137.3,41.92764356]
[1728574605037,7.2823,137.32,137.29,6.0192]
[1728574606225,7.2823,137.32,137.3,24.027864]
[1728574607209,7.2823,137.32,137.3,23.902374]
[1728574607414,0.5,137.35,137.27,18.2112]
[1728574607415,7.2831,137.31,137.27,18.2112]
[1728574607940,7.2831,137.31,137.27,25.4957]
[1728574608238,7.2838,137.3,137.26,23.2976]
[1728574608616,0.5,137.33,137.26,16.0122]
[1728574609037,0.5,137.33,137.26,34.2254]
[1728574609315,7.2826,137.32,137.27,7.2847]
[1728574609817,0.5,137.33,137.28,24.027864]
[1728574610018,7.2828,137.31,137.28,24.027864]
[1728574610237,7.2833,137.3,137.26,41.5107]
[1728574610517,7.2833,137.3,137.27,1.45671416]
[1728574611634,7.2833,137.3,137.28,0.25098]
[1728574612317,7.2832,137.31,137.28,24.027864]
[1728574612818,7.2837,137.3,137.28,0.12549]
[1728574613013,7.2837,137.3,137.23,16.3051]
[1728574613014,0.5,137.29,137.23,18.2168]
[1728574613325,7.2853,137.27,137.23,18.2168]
[1728574614140,7.2855,137.26,137.22,7.2874]
[1728574615142,7.285,137.27,137.23,8.74410865]
[1728574615641,7.285,137.27,137.24,24.027864]
[1728574616742,36.4107,137.33,137.24,24.027864]
[1728574616743,0.5,137.32,137.26,0.25098]
[1728574617042,7.2844,137.28,137.26,0.25098]
[1728574617228,0.5,137.32,137.26,18.46408]
[1728574617421,7.2833,137.3,137.26,25.74928]
[1728574617623,7.2833,137.3,137.28,0.12549]
[1728574617822,0.5,137.29,137.26,0.12549]
[1728574618035,7.2843,137.28,137.27,0.12549]
[1728574618828,7.2839,137.29,137.27,0.12549]
[1728574619223,0.5,137.32,137.27,0.12549]
[1728574619446,7.2838,137.29,137.27,0.12549]
[1728574619743,0.5,137.32,137.27,0.12549]
[1728574619945,0.5,137.32,137.28,0.12549]
[1728574620241,7.2833,137.3,137.28,1.58215952]
[1728574620453,7.2819,137.33,137.3,0.25098]
[1728574620618,0.5,137.35,137.3,0.25098]
[1728574620818,7.2823,137.32,137.3,0.25098]
[1728574621033,0.5,137.35,137.3,0.25098]
[1728574621034,7.2812,137.34,137.3,7.53398]
[1728574621227,7.2812,137.34,137.31,1.45637256]
[1728574621527,7.282,137.33,137.3,1.70731664]
[1728574621721,7.282,137.33,137.3,0.25098]
[1728574621919,7.282,137.33,137.3,1.70733107]
[1728574622140,7.2813,137.34,137.3,8.99053107]
[1728574622317,0.5,137.33,137.3,0.25098]
[1728574622516,7.2826,137.32,137.3,0.25098]
[1728574622737,0.5,137.36,137.28,6.0604]
[1728574622944,7.2838,137.29,137.26,34.4395]
[1728574623443,7.2834,137.3,137.27,1.45670886]
[1728574624148,7.2824,137.32,137.28,31.312164]
[1728574624327,7.2828,137.31,137.3,0.12549]
[1728574624647,0.5,137.35,137.29,0.12549]
[1728574624648,18.2034,137.34,137.29,0.12549]
[1728574624836,15.5669,137.37,137.29,31.186074]
[1728574624837,7.7818,137.33,137.29,31.186074]
[1728574625021,0.5,137.33,137.29,23.902374]
[1728574625223,7.2833,137.3,137.29,0.12549]
[1728574625421,7.2843,137.28,137.25,24.6502]
[1728574625730,7.2843,137.28,137.25,6.4365]
[1728574626130,7.2843,137.28,137.26,1.4568719]
[1728574626326,7.2855,137.26,137.22,41.6333]
[1728574626846,7.2859,137.25,137.22,34.346]
[1728574627147,7.2859,137.25,137.22,18.2177]
[1728574627936,7.2865,137.24,137.21,6.3879]
[1728574629052,7.2875,137.22,137.19,33.4274]
[1728574629224,18.2152,137.25,137.18,6.1832]
[1728574629532,7.2882,137.21,137.18,6.1832]
[1728574630252,7.2882,137.21,137.18,7.64081122]
[1728574630421,0.5,137.24,137.16,42.1738]
[1728574630621,7.2886,137.2,137.16,42.1738]
[1728574631317,7.2886,137.2,137.18,0.25098]
[1728574631517,7.2886,137.2,137.16,42.1738]
[1728574631721,7.2886,137.2,137.17,1.58321256]
[1728574631944,7.2882,137.21,137.17,8.87321256]
[1728574632340,7.2876,137.22,137.19,0.12549]
[1728574632763,7.2876,137.22,137.19,24.027864]
[1728574633176,0.5,137.24,137.2,1.45759145]
[1728574633471,0.5,137.27,137.21,24.027864]
[1728574633647,7.7845,137.28,137.23,24.027864]
[1728574633845,7.7845,137.28,137.24,1.45712384]
[1728574634069,7.2845,137.28,137.24,8.74352384]
[1728574634275,7.2845,137.28,137.25,0.12549]
[1728574634470,0.5,137.3,137.25,7.53668]
[1728574634654,0.5,137.3,137.23,40.324184]
[1728574634655,18.2098,137.29,137.23,16.5473]
[1728574634852,7.2856,137.26,137.24,0.25098]
[1728574635248,7.2856,137.26,137.24,1.70806334]
[1728574635442,7.285,137.27,137.24,1.70806334]
[1728574635666,7.285,137.27,137.23,23.8342]
[1728574635667,7.2839,137.29,137.26,0.25098]
[1728574636559,0.5,137.31,137.26,8.99313946]
[1728574636560,7.2834,137.3,137.26,8.99313946]
[1728574637264,7.2838,137.29,137.26,0.25098]
[1728574637774,7.2829,137.31,137.27,31.061384]
[1728574638070,7.2827,137.32,137.29,0.25098]
[1728574638872,0.5,137.34,137.3,23.776884]
[1728574639091,0.5,137.34,137.31,1.58186799]
[1728574639092,7.2815,137.34,137.31,1.58186799]
[1728574639248,0.5,137.37,137.33,0.12549]
[1728574639447,1.24367147,137.4,137.34,1.45606887]
[1728574639448,0.5,137.39,137.34,1.45606887]
[1728574640162,0.5,137.39,137.35,0.25098]